[Event "Early-Titled-Tuesday-Blitz-September-05-2023"]
[Site "Chess.com"]
[Date "2023.09.05"]
[Round "7"]
[White "CraiggoryC"]
[Black "AttilaTurzo"]
[Result "1-0"]
[WhiteElo "2222"]
[BlackElo "2506"]
[TimeControl "180+1"]
[EndTime "9:17:17 PDT"]
[Termination "CraiggoryC won by resignation"]

1. e4 {[%clk 0:02:54.9]} 1... c5 {[%clk 0:02:59.2]} 2. Nf3 {[%clk 0:02:54.3]}
2... d6 {[%clk 0:02:59.7]} 3. d4 {[%clk 0:02:54.2]} 3... cxd4 {[%clk 0:03:00.6]}
4. Nxd4 {[%clk 0:02:54.8]} 4... Nf6 {[%clk 0:03:01.1]} 5. Nc3 {[%clk 0:02:55.3]}
5... a6 {[%clk 0:03:01.5]} 6. Be3 {[%clk 0:02:55.5]} 6... e5 {[%clk 0:03:01.7]}
7. Nb3 {[%clk 0:02:56.1]} 7... Be6 {[%clk 0:03:00.8]} 8. f3 {[%clk 0:02:56.5]}
8... Nbd7 {[%clk 0:03:00.7]} 9. Qd2 {[%clk 0:02:54]} 9... h5 {[%clk 0:03:00.3]}
10. Nd5 {[%clk 0:02:46.2]} 10... Nxd5 {[%clk 0:02:58.2]} 11. exd5 {[%clk
0:02:47.1]} 11... Bf5 {[%clk 0:02:58.7]} 12. Be2 {[%clk 0:02:42]} 12... h4
{[%clk 0:02:42.9]} 13. O-O {[%clk 0:02:34.7]} 13... Be7 {[%clk 0:02:42.8]} 14.
c4 {[%clk 0:02:21.9]} 14... b6 {[%clk 0:02:39.4]} 15. f4 {[%clk 0:02:12.8]}
15... exf4 {[%clk 0:02:28.8]} 16. Rxf4 {[%clk 0:02:04.3]} 16... Bg6 {[%clk
0:02:27.3]} 17. Nd4 {[%clk 0:01:55.4]} 17... Ne5 {[%clk 0:02:25.6]} 18. Rf2
{[%clk 0:01:48.9]} 18... Qc7 {[%clk 0:02:22.7]} 19. Rc1 {[%clk 0:01:26]} 19...
h3 {[%clk 0:02:16.5]} 20. g3 {[%clk 0:01:26]} 20... O-O {[%clk 0:02:04.8]} 21.
Bf4 {[%clk 0:01:07.9]} 21... Rac8 {[%clk 0:02:00.3]} 22. b4 {[%clk 0:01:06.2]}
22... Qd7 {[%clk 0:01:49]} 23. Bxe5 {[%clk 0:00:57]} 23... dxe5 {[%clk
0:01:47.5]} 24. Nc6 {[%clk 0:00:55.8]} 24... Rxc6 {[%clk 0:01:43.1]} 25. Bg4
{[%clk 0:00:42.6]} 25... Qd8 {[%clk 0:01:25.8]} 26. dxc6 {[%clk 0:00:41.9]}
26... f5 {[%clk 0:00:29.7]} 27. Qxd8 {[%clk 0:00:30.1]} 27... Bxd8 {[%clk
0:00:27.7]} 28. Bxh3 {[%clk 0:00:23.9]} 28... Be7 {[%clk 0:00:22.1]} 29. a3
{[%clk 0:00:21.4]} 29... e4 {[%clk 0:00:20.7]} 30. Rd1 {[%clk 0:00:12.8]} 30...
a5 {[%clk 0:00:19.5]} 31. Rd7 {[%clk 0:00:10.9]} 31... Bg5 {[%clk 0:00:15.8]}
32. c7 {[%clk 0:00:07.9]} 32... axb4 {[%clk 0:00:15.3]} 33. axb4 {[%clk
0:00:07.6]} 33... e3 {[%clk 0:00:15.8]} 34. Re2 {[%clk 0:00:07.2]} 34... Rc8
{[%clk 0:00:14.5]} 35. Kg2 {[%clk 0:00:05.4]} 35... f4 {[%clk 0:00:13.5]} 36.
gxf4 {[%clk 0:00:05]} 36... Bxf4 {[%clk 0:00:14.4]} 37. Rd8+ {[%clk 0:00:03.9]}
37... Kf7 {[%clk 0:00:11.8]} 38. Rxc8 {[%clk 0:00:04.1]} 38... Be4+ {[%clk
0:00:12.7]} 39. Kf1 {[%clk 0:00:03.6]} 39... Bb7 {[%clk 0:00:12.1]} 40. Rb8
{[%clk 0:00:03.2]} 40... Bxc7 {[%clk 0:00:11]} 41. Rxb7 {[%clk 0:00:03.4]} 41...
Kf6 {[%clk 0:00:11.9]} 42. Rxc7 {[%clk 0:00:04]} 42... g5 {[%clk 0:00:12.2]} 43.
Rg7 {[%clk 0:00:04.9]} 43... Ke5 {[%clk 0:00:12.3]} 44. Rxe3+ {[%clk 0:00:05.3]}
44... Kf4 {[%clk 0:00:13.2]} 45. Rg3 {[%clk 0:00:05.9]} 45... g4 {[%clk
0:00:12.7]} 46. R3xg4+ {[%clk 0:00:05.8]} 46... Kf3 {[%clk 0:00:12.3]} 47. R4g6
{[%clk 0:00:06.7]} 47... Kf4 {[%clk 0:00:12.3]} 48. Rxb6 {[%clk 0:00:07.6]}
48... Ke3 {[%clk 0:00:12.7]} 49. Rd6 {[%clk 0:00:08.2]} 49... Ke4 {[%clk
0:00:12.7]} 50. c5 {[%clk 0:00:08.7]} 50... Ke5 {[%clk 0:00:13]} 51. Re7+ {[%clk
0:00:09.1]} 51... Kf4 {[%clk 0:00:11.8]} 52. Rf6+ {[%clk 0:00:09.4]} 52... Kg5
{[%clk 0:00:12.2]} 53. c6 {[%clk 0:00:09.1]} 53... Kxf6 {[%clk 0:00:12.1]} 54.
Rd7 {[%clk 0:00:09.8]} 54... Ke5 {[%clk 0:00:11.9]} 55. c7 {[%clk 0:00:10.3]}
55... Ke4 {[%clk 0:00:12.4]} 56. c8=Q {[%clk 0:00:10.7]} 56... Ke5 {[%clk
0:00:13]} 57. Qe8+ {[%clk 0:00:11.2]} 57... Kf6 {[%clk 0:00:13.5]} 58. Rf7+
{[%clk 0:00:11.8]} 58... Kg5 {[%clk 0:00:14]} 59. Qg8+ {[%clk 0:00:12.5]} 1-0

[Event "Early-Titled-Tuesday-Blitz-September-05-2023"]
[Site "Chess.com"]
[Date "2023.09.05"]
[Round "7"]
[White "SAInt_666"]
[Black "JoliyRoger"]
[Result "1-0"]
[WhiteElo "2699"]
[BlackElo "2483"]
[TimeControl "180+1"]
[EndTime "9:17:19 PDT"]
[Termination "SAInt_666 won on time"]

1. e4 {[%clk 0:03:00.9]} 1... c6 {[%clk 0:02:59.5]} 2. d4 {[%clk 0:03:00.1]}
2... d5 {[%clk 0:03:00.4]} 3. Nc3 {[%clk 0:03:00.1]} 3... dxe4 {[%clk
0:02:59.3]} 4. Nxe4 {[%clk 0:03:01]} 4... Bf5 {[%clk 0:02:59.6]} 5. Ng3 {[%clk
0:03:01.1]} 5... Bg6 {[%clk 0:02:59.9]} 6. h4 {[%clk 0:03:01.8]} 6... h6 {[%clk
0:03:00.2]} 7. Nf3 {[%clk 0:03:02.5]} 7... Nd7 {[%clk 0:02:59.6]} 8. h5 {[%clk
0:03:03]} 8... Bh7 {[%clk 0:03:00.1]} 9. Bd3 {[%clk 0:03:03.7]} 9... Bxd3 {[%clk
0:03:00.1]} 10. Qxd3 {[%clk 0:03:04.6]} 10... Qc7 {[%clk 0:03:00.8]} 11. Bd2
{[%clk 0:03:03.9]} 11... e6 {[%clk 0:03:01]} 12. O-O-O {[%clk 0:03:04.6]} 12...
Ngf6 {[%clk 0:03:01.9]} 13. Ne4 {[%clk 0:03:01.8]} 13... O-O-O {[%clk
0:03:01.5]} 14. Kb1 {[%clk 0:03:00]} 14... Nc5 {[%clk 0:02:54.2]} 15. Nxc5
{[%clk 0:02:55.5]} 15... Bxc5 {[%clk 0:02:55.1]} 16. Rh4 {[%clk 0:02:50.3]}
16... Bd6 {[%clk 0:02:54.8]} 17. Qe2 {[%clk 0:02:48]} 17... Kb8 {[%clk
0:02:47.2]} 18. Bc1 {[%clk 0:02:44.2]} 18... Ka8 {[%clk 0:02:46.2]} 19. g3
{[%clk 0:02:11]} 19... Rhe8 {[%clk 0:02:43.2]} 20. a3 {[%clk 0:01:59.2]} 20...
a6 {[%clk 0:02:42.8]} 21. c4 {[%clk 0:01:53.9]} 21... c5 {[%clk 0:02:22.6]} 22.
Be3 {[%clk 0:01:53.3]} 22... cxd4 {[%clk 0:01:59.1]} 23. Rhxd4 {[%clk
0:01:46.1]} 23... Nxh5 {[%clk 0:01:47]} 24. c5 {[%clk 0:01:45.7]} 24... Be7
{[%clk 0:01:47.1]} 25. Rxd8+ {[%clk 0:01:30.2]} 25... Rxd8 {[%clk 0:01:40.4]}
26. Rxd8+ {[%clk 0:01:25.2]} 26... Bxd8 {[%clk 0:01:39.9]} 27. Nd2 {[%clk
0:00:51.7]} 27... Nf6 {[%clk 0:01:34]} 28. Bd4 {[%clk 0:00:52.2]} 28... Qc6
{[%clk 0:01:29.6]} 29. Nc4 {[%clk 0:00:46]} 29... Qh1+ {[%clk 0:01:13]} 30. Kc2
{[%clk 0:00:45.2]} 30... Qd5 {[%clk 0:01:06.4]} 31. Qd3 {[%clk 0:00:33.5]} 31...
Ne8 {[%clk 0:00:29.2]} 32. Ne3 {[%clk 0:00:19.6]} 32... Qc6 {[%clk 0:00:26.8]}
33. Bxg7 {[%clk 0:00:17.3]} 33... Be7 {[%clk 0:00:22.4]} 34. Bxh6 {[%clk
0:00:14.6]} 34... Bxc5 {[%clk 0:00:22.6]} 35. Kb1 {[%clk 0:00:15.1]} 35... Nd6
{[%clk 0:00:16.1]} 36. Bf4 {[%clk 0:00:14.5]} 36... Bxe3 {[%clk 0:00:11.2]} 37.
Bxe3 {[%clk 0:00:15.4]} 37... Qe4 {[%clk 0:00:08]} 38. Kc2 {[%clk 0:00:13.9]}
38... Qxd3+ {[%clk 0:00:07.7]} 39. Kxd3 {[%clk 0:00:14.8]} 39... b5 {[%clk
0:00:06.9]} 40. g4 {[%clk 0:00:13.6]} 40... Kb7 {[%clk 0:00:07.3]} 41. b3 {[%clk
0:00:12.7]} 41... Kc6 {[%clk 0:00:07.6]} 42. Kd4 {[%clk 0:00:13.4]} 42... Ne8
{[%clk 0:00:02.8]} 43. Ke5 {[%clk 0:00:12.9]} 43... Kd7 {[%clk 0:00:03.1]} 44.
f4 {[%clk 0:00:12.1]} 44... f6+ {[%clk 0:00:02.6]} 45. Ke4 {[%clk 0:00:12.6]}
45... Nd6+ {[%clk 0:00:02.1]} 46. Kd4 {[%clk 0:00:12.1]} 46... Kc6 {[%clk
0:00:02.1]} 47. Bd2 {[%clk 0:00:12.5]} 1-0

[Event "Early-Titled-Tuesday-Blitz-September-05-2023"]
[Site "Chess.com"]
[Date "2023.09.05"]
[Round "7"]
[White "IM_Tissir"]
[Black "Amirreza_p"]
[Result "0-1"]
[WhiteElo "2456"]
[BlackElo "2609"]
[TimeControl "180+1"]
[EndTime "9:17:19 PDT"]
[Termination "Amirreza_p won by resignation"]

1. e4 {[%clk 0:02:50.6]} 1... c6 {[%clk 0:02:59.6]} 2. d4 {[%clk 0:02:44.4]}
2... d5 {[%clk 0:02:59.5]} 3. Nc3 {[%clk 0:02:42.3]} 3... dxe4 {[%clk
0:02:59.1]} 4. Nxe4 {[%clk 0:02:43.2]} 4... Nf6 {[%clk 0:03:00]} 5. Nxf6+ {[%clk
0:02:42.5]} 5... exf6 {[%clk 0:03:00.9]} 6. c3 {[%clk 0:02:42.9]} 6... Bd6
{[%clk 0:03:01.8]} 7. Bd3 {[%clk 0:02:42.4]} 7... O-O {[%clk 0:03:02.7]} 8. Ne2
{[%clk 0:02:43.2]} 8... Re8 {[%clk 0:03:02.4]} 9. Qc2 {[%clk 0:02:44.1]} 9... h5
{[%clk 0:03:02.4]} 10. Be3 {[%clk 0:02:43.1]} 10... Nd7 {[%clk 0:03:01.9]} 11.
O-O-O {[%clk 0:02:42.2]} 11... Nf8 {[%clk 0:03:01.9]} 12. c4 {[%clk 0:02:42.7]}
12... Be6 {[%clk 0:02:59.9]} 13. Nc3 {[%clk 0:02:42.7]} 13... Rc8 {[%clk
0:02:57.2]} 14. Kb1 {[%clk 0:02:16.6]} 14... Bb4 {[%clk 0:02:56.1]} 15. Ne2
{[%clk 0:02:10.7]} 15... Bd6 {[%clk 0:02:45.3]} 16. h3 {[%clk 0:01:49.8]} 16...
b5 {[%clk 0:02:41.5]} 17. d5 {[%clk 0:01:32]} 17... cxd5 {[%clk 0:02:27.7]} 18.
c5 {[%clk 0:01:31.5]} 18... a6 {[%clk 0:01:56.3]} 19. Nf4 {[%clk 0:01:08.4]}
19... d4 {[%clk 0:01:06.4]} 20. Nxe6 {[%clk 0:01:01.7]} 20... Nxe6 {[%clk
0:01:02.7]} 21. Bxd4 {[%clk 0:00:57]} 21... Nxd4 {[%clk 0:01:00.8]} 22. Bh7+
{[%clk 0:00:56.8]} 22... Kh8 {[%clk 0:01:01.4]} 23. Rxd4 {[%clk 0:00:57.5]}
23... Rxc5 {[%clk 0:00:54.8]} 24. Qd3 {[%clk 0:00:46.8]} 24... Rc6 {[%clk
0:00:41.9]} 25. Rd1 {[%clk 0:00:45.8]} 25... Qc7 {[%clk 0:00:21.1]} 26. Be4
{[%clk 0:00:30.8]} 26... Rc4 {[%clk 0:00:19.5]} 27. Qf3 {[%clk 0:00:16.6]} 27...
Rxd4 {[%clk 0:00:19.1]} 28. Qxh5+ {[%clk 0:00:14.8]} 28... Kg8 {[%clk
0:00:19.2]} 29. Qh7+ {[%clk 0:00:15]} 29... Kf8 {[%clk 0:00:19.4]} 30. Rxd4
{[%clk 0:00:15.3]} 30... Be5 {[%clk 0:00:18.9]} 31. Rd1 {[%clk 0:00:11.6]} 31...
g6 {[%clk 0:00:18.7]} 32. Qh8+ {[%clk 0:00:10]} 32... Ke7 {[%clk 0:00:18.7]} 33.
Qh4 {[%clk 0:00:10.9]} 33... Rd8 {[%clk 0:00:15.5]} 34. Rc1 {[%clk 0:00:10]}
34... Qd6 {[%clk 0:00:14]} 35. Bf3 {[%clk 0:00:06.5]} 35... Qd2 {[%clk
0:00:12.8]} 36. Rc2 {[%clk 0:00:02.9]} 36... Qe1+ {[%clk 0:00:12.6]} 37. Rc1
{[%clk 0:00:03.5]} 37... Qd2 {[%clk 0:00:12.8]} 38. Rc2 {[%clk 0:00:03.8]} 38...
Qd6 {[%clk 0:00:10.8]} 39. a3 {[%clk 0:00:03.1]} 39... a5 {[%clk 0:00:09.2]} 40.
Qe4 {[%clk 0:00:03.2]} 40... f5 {[%clk 0:00:08.1]} 41. Qb7+ {[%clk 0:00:03.2]}
41... Rd7 {[%clk 0:00:08.4]} 42. Qxb5 {[%clk 0:00:04.1]} 42... Kf6 {[%clk
0:00:07.7]} 43. Qc4 {[%clk 0:00:02.7]} 43... Rc7 {[%clk 0:00:04.4]} 44. Ka2
{[%clk 0:00:03.1]} 44... Rxc4 {[%clk 0:00:04.3]} 0-1

[Event "Early-Titled-Tuesday-Blitz-September-05-2023"]
[Site "Chess.com"]
[Date "2023.09.05"]
[Round "7"]
[White "MusicCityMaster"]
[Black "noblerone"]
[Result "1-0"]
[WhiteElo "2378"]
[BlackElo "2527"]
[TimeControl "180+1"]
[EndTime "9:17:21 PDT"]
[Termination "MusicCityMaster won by resignation"]

1. e4 {[%clk 0:03:00.9]} 1... d5 {[%clk 0:02:56.8]} 2. exd5 {[%clk 0:03:00.6]}
2... Qxd5 {[%clk 0:02:57.7]} 3. Nc3 {[%clk 0:03:00]} 3... Qd8 {[%clk 0:02:57.5]}
4. d4 {[%clk 0:03:00.1]} 4... Nf6 {[%clk 0:02:57.2]} 5. Nf3 {[%clk 0:02:58]}
5... Bg4 {[%clk 0:02:55.9]} 6. Bc4 {[%clk 0:02:57.5]} 6... e6 {[%clk 0:02:52.7]}
7. h3 {[%clk 0:02:53.7]} 7... Bxf3 {[%clk 0:02:52.1]} 8. Qxf3 {[%clk 0:02:53.3]}
8... c6 {[%clk 0:02:53]} 9. Be3 {[%clk 0:02:44.2]} 9... Nbd7 {[%clk 0:02:43.3]}
10. Bb3 {[%clk 0:02:40.5]} 10... Nb6 {[%clk 0:02:40.6]} 11. Ne4 {[%clk 0:02:39]}
11... Nbd5 {[%clk 0:02:37.4]} 12. Bd2 {[%clk 0:02:28.3]} 12... Nxe4 {[%clk
0:02:34.4]} 13. Qxe4 {[%clk 0:02:29.2]} 13... b5 {[%clk 0:02:30.8]} 14. c3
{[%clk 0:02:19.1]} 14... Be7 {[%clk 0:02:24.2]} 15. O-O {[%clk 0:02:18.4]} 15...
Bf6 {[%clk 0:02:23.3]} 16. Rae1 {[%clk 0:02:13.3]} 16... O-O {[%clk 0:02:21.9]}
17. Bc2 {[%clk 0:02:08.3]} 17... g6 {[%clk 0:02:22.2]} 18. Bh6 {[%clk
0:02:08.2]} 18... Bg7 {[%clk 0:02:19.2]} 19. Bxg7 {[%clk 0:02:07.4]} 19... Kxg7
{[%clk 0:02:20.1]} 20. f4 {[%clk 0:01:56.8]} 20... Re8 {[%clk 0:02:10]} 21. Rf2
{[%clk 0:01:55.9]} 21... a5 {[%clk 0:02:03.3]} 22. g4 {[%clk 0:01:52.9]} 22...
f5 {[%clk 0:01:50.5]} 23. Qg2 {[%clk 0:01:37.1]} 23... Qf6 {[%clk 0:01:31.4]}
24. Re5 {[%clk 0:01:28.6]} 24... fxg4 {[%clk 0:01:18.4]} 25. Qxg4 {[%clk
0:01:07.2]} 25... Ra7 {[%clk 0:01:12.3]} 26. h4 {[%clk 0:01:06.8]} 26... Rf7
{[%clk 0:01:09.2]} 27. h5 {[%clk 0:00:56.2]} 27... Nxf4 {[%clk 0:01:00.4]} 28.
Rg2 {[%clk 0:00:40.7]} 28... Nxg2 {[%clk 0:00:57.7]} 29. Qxg2 {[%clk 0:00:39.5]}
29... Qf3 {[%clk 0:00:51.2]} 30. Qxf3 {[%clk 0:00:33.1]} 30... Rxf3 {[%clk
0:00:52.1]} 31. Be4 {[%clk 0:00:32.2]} 31... Re3 {[%clk 0:00:20.4]} 32. Kf2
{[%clk 0:00:32.1]} 32... Rxe4 {[%clk 0:00:20.7]} 33. Rxe4 {[%clk 0:00:32.4]}
33... Kf6 {[%clk 0:00:18.5]} 34. hxg6 {[%clk 0:00:31.7]} 34... hxg6 {[%clk
0:00:18.5]} 35. Re5 {[%clk 0:00:32.3]} 35... Rd8 {[%clk 0:00:16.2]} 36. Rc5
{[%clk 0:00:32]} 36... Rd6 {[%clk 0:00:16.5]} 37. a4 {[%clk 0:00:31.5]} 37... b4
{[%clk 0:00:15.6]} 38. Rxa5 {[%clk 0:00:29.7]} 38... bxc3 {[%clk 0:00:15.7]} 39.
bxc3 {[%clk 0:00:30.6]} 39... Rd8 {[%clk 0:00:14.9]} 40. Rc5 {[%clk 0:00:30.6]}
40... Ra8 {[%clk 0:00:14.7]} 41. a5 {[%clk 0:00:30.9]} 41... Ra6 {[%clk
0:00:15.1]} 42. Kf3 {[%clk 0:00:30.5]} 42... Ke7 {[%clk 0:00:15.7]} 43. Kf4
{[%clk 0:00:28.5]} 43... Kf6 {[%clk 0:00:13.2]} 44. c4 {[%clk 0:00:27.7]} 44...
Ra8 {[%clk 0:00:13.2]} 45. Rxc6 {[%clk 0:00:26.7]} 45... Rxa5 {[%clk 0:00:12.8]}
46. d5 {[%clk 0:00:27.3]} 46... g5+ {[%clk 0:00:04.8]} 47. Ke4 {[%clk 0:00:26]}
47... Ra4 {[%clk 0:00:04.8]} 48. Rxe6+ {[%clk 0:00:26.2]} 48... Kf7 {[%clk
0:00:05.5]} 49. Kd4 {[%clk 0:00:24.4]} 49... Ra1 {[%clk 0:00:04.8]} 50. Re4
{[%clk 0:00:23]} 50... Kf6 {[%clk 0:00:04.5]} 51. d6 {[%clk 0:00:21.6]} 51...
Kf5 {[%clk 0:00:04.3]} 52. Re5+ {[%clk 0:00:20.7]} 52... Kf6 {[%clk 0:00:04.5]}
53. Re2 {[%clk 0:00:19.7]} 53... Rd1+ {[%clk 0:00:03.9]} 54. Kc5 {[%clk
0:00:20.1]} 54... g4 {[%clk 0:00:04.3]} 55. Kc6 {[%clk 0:00:19.7]} 55... Rc1
{[%clk 0:00:03.5]} 56. c5 {[%clk 0:00:19.8]} 56... Kf5 {[%clk 0:00:03.9]} 57. d7
{[%clk 0:00:20]} 57... Rd1 {[%clk 0:00:03.6]} 58. Kc7 {[%clk 0:00:20.4]} 58...
Kf4 {[%clk 0:00:04]} 59. d8=Q {[%clk 0:00:20.3]} 59... Rxd8 {[%clk 0:00:04.6]}
60. Kxd8 {[%clk 0:00:20.9]} 60... Kf3 {[%clk 0:00:05.5]} 61. Re7 {[%clk
0:00:20.8]} 61... g3 {[%clk 0:00:04.6]} 62. Rg7 {[%clk 0:00:21.1]} 1-0

[Event "Early-Titled-Tuesday-Blitz-September-05-2023"]
[Site "Chess.com"]
[Date "2023.09.05"]
[Round "7"]
[White "Agibileg"]
[Black "Duong57"]
[Result "1-0"]
[WhiteElo "2674"]
[BlackElo "2495"]
[TimeControl "180+1"]
[EndTime "9:17:22 PDT"]
[Termination "Agibileg won on time"]

1. d4 {[%clk 0:03:00.1]} 1... d5 {[%clk 0:02:59.7]} 2. c4 {[%clk 0:03:00.3]}
2... e6 {[%clk 0:02:58.8]} 3. Nc3 {[%clk 0:03:00.4]} 3... c6 {[%clk 0:02:58.9]}
4. Nf3 {[%clk 0:03:00.2]} 4... dxc4 {[%clk 0:02:58.6]} 5. g3 {[%clk 0:02:58.5]}
5... b5 {[%clk 0:02:54.1]} 6. Bg2 {[%clk 0:02:58.8]} 6... Bb7 {[%clk 0:02:54.2]}
7. O-O {[%clk 0:02:58.8]} 7... Nf6 {[%clk 0:02:53.6]} 8. a4 {[%clk 0:02:52.8]}
8... b4 {[%clk 0:02:38.2]} 9. Nb1 {[%clk 0:02:51.5]} 9... c5 {[%clk 0:02:10]}
10. Qc2 {[%clk 0:02:42.1]} 10... cxd4 {[%clk 0:01:45.8]} 11. Qxc4 {[%clk
0:02:39.3]} 11... Bd5 {[%clk 0:01:42.1]} 12. Qxd4 {[%clk 0:02:27.7]} 12... Nc6
{[%clk 0:01:41.5]} 13. Qd3 {[%clk 0:02:13.6]} 13... Be7 {[%clk 0:01:40.3]} 14.
Bg5 {[%clk 0:02:02.1]} 14... O-O {[%clk 0:01:37.9]} 15. Nbd2 {[%clk 0:02:01.8]}
15... Na5 {[%clk 0:01:06.5]} 16. Rfd1 {[%clk 0:01:49.1]} 16... h6 {[%clk
0:01:00.1]} 17. Bxf6 {[%clk 0:01:35.3]} 17... Bxf6 {[%clk 0:00:59.9]} 18. e4
{[%clk 0:01:34.1]} 18... Bb7 {[%clk 0:00:53.5]} 19. Qe2 {[%clk 0:01:21.9]} 19...
Qb6 {[%clk 0:00:47.3]} 20. e5 {[%clk 0:01:18.1]} 20... Be7 {[%clk 0:00:47]} 21.
Ne4 {[%clk 0:01:15]} 21... Rfd8 {[%clk 0:00:29.7]} 22. h4 {[%clk 0:00:58.7]}
22... Rac8 {[%clk 0:00:28.9]} 23. h5 {[%clk 0:00:56.9]} 23... Nb3 {[%clk
0:00:25.5]} 24. Rxd8+ {[%clk 0:00:55.7]} 24... Rxd8 {[%clk 0:00:24.8]} 25. Re1
{[%clk 0:00:54.3]} 25... Ba6 {[%clk 0:00:16.1]} 26. Qc2 {[%clk 0:00:49.4]} 26...
Na5 {[%clk 0:00:16.3]} 27. Nd6 {[%clk 0:00:32.8]} 27... Bxd6 {[%clk 0:00:11.8]}
28. exd6 {[%clk 0:00:33.7]} 28... Qxd6 {[%clk 0:00:11.4]} 29. Ne5 {[%clk
0:00:31.5]} 29... b3 {[%clk 0:00:11]} 30. Qc3 {[%clk 0:00:25.8]} 30... Qb6
{[%clk 0:00:09.1]} 31. Qf3 {[%clk 0:00:20.8]} 31... Qc7 {[%clk 0:00:07.9]} 32.
Ng4 {[%clk 0:00:18.7]} 32... Bb7 {[%clk 0:00:06.5]} 33. Qe3 {[%clk 0:00:15.4]}
33... Bxg2 {[%clk 0:00:06.3]} 34. Kxg2 {[%clk 0:00:16.3]} 34... Qc6+ {[%clk
0:00:06.6]} 35. Kh2 {[%clk 0:00:15.2]} 35... Qc4 {[%clk 0:00:06.2]} 36. Ne5
{[%clk 0:00:14.8]} 36... Qd4 {[%clk 0:00:06.3]} 37. Qf3 {[%clk 0:00:14.4]} 37...
Rf8 {[%clk 0:00:04.6]} 38. Re4 {[%clk 0:00:14.1]} 38... Qxb2 {[%clk 0:00:04.3]}
39. Nd3 {[%clk 0:00:09.8]} 39... Qc3 {[%clk 0:00:04]} 40. Rg4 {[%clk 0:00:09.3]}
40... b2 {[%clk 0:00:03.4]} 41. Qd1 {[%clk 0:00:07.8]} 41... Rb8 {[%clk
0:00:01.4]} 42. Nxb2 {[%clk 0:00:07.3]} 42... Qxb2 {[%clk 0:00:01.4]} 43. Qf3
{[%clk 0:00:03.6]} 1-0

[Event "Early-Titled-Tuesday-Blitz-September-05-2023"]
[Site "Chess.com"]
[Date "2023.09.05"]
[Round "7"]
[White "ChainedDowntohell"]
[Black "psychokiller48"]
[Result "1-0"]
[WhiteElo "2592"]
[BlackElo "2689"]
[TimeControl "180+1"]
[EndTime "9:17:23 PDT"]
[Termination "ChainedDowntohell won by resignation"]

1. a3 {[%clk 0:03:00.9]} 1... e5 {[%clk 0:02:59.2]} 2. c4 {[%clk 0:03:00.4]}
2... c6 {[%clk 0:02:59.2]} 3. d4 {[%clk 0:02:57.6]} 3... exd4 {[%clk 0:02:56.7]}
4. Qxd4 {[%clk 0:02:58.5]} 4... d5 {[%clk 0:02:56.8]} 5. Nf3 {[%clk 0:02:58.2]}
5... Nf6 {[%clk 0:02:56.6]} 6. Bf4 {[%clk 0:02:54.9]} 6... Na6 {[%clk
0:02:55.5]} 7. e3 {[%clk 0:02:49]} 7... Be7 {[%clk 0:02:47.2]} 8. Nc3 {[%clk
0:02:36]} 8... Nc5 {[%clk 0:02:41.5]} 9. Rd1 {[%clk 0:02:04.3]} 9... dxc4 {[%clk
0:02:20.6]} 10. Qxd8+ {[%clk 0:01:53.6]} 10... Bxd8 {[%clk 0:02:21.5]} 11. Bxc4
{[%clk 0:01:53.3]} 11... O-O {[%clk 0:02:21]} 12. Bd6 {[%clk 0:01:53.5]} 12...
Be6 {[%clk 0:02:01.8]} 13. Bxe6 {[%clk 0:01:46.6]} 13... Nxe6 {[%clk 0:02:02.7]}
14. Bxf8 {[%clk 0:01:45.8]} 14... Kxf8 {[%clk 0:02:02.3]} 15. Ke2 {[%clk
0:01:43.1]} 15... Bc7 {[%clk 0:02:00.3]} 16. h3 {[%clk 0:01:34.3]} 16... Re8
{[%clk 0:01:59.5]} 17. Rhe1 {[%clk 0:01:30.5]} 17... Ba5 {[%clk 0:01:55.8]} 18.
b4 {[%clk 0:01:28]} 18... Bc7 {[%clk 0:01:55.3]} 19. Nd4 {[%clk 0:01:26.1]}
19... Nxd4+ {[%clk 0:01:42.5]} 20. Rxd4 {[%clk 0:01:25.7]} 20... a5 {[%clk
0:01:43.4]} 21. b5 {[%clk 0:01:15.8]} 21... Be5 {[%clk 0:01:41.4]} 22. Rc4
{[%clk 0:01:13.1]} 22... Bxc3 {[%clk 0:01:39.2]} 23. Rxc3 {[%clk 0:01:14]} 23...
cxb5 {[%clk 0:01:39.9]} 24. Rb1 {[%clk 0:01:08]} 24... Ne4 {[%clk 0:01:14.1]}
25. Rc7 {[%clk 0:01:05.3]} 25... Re7 {[%clk 0:01:06.8]} 26. Rxe7 {[%clk
0:00:33.7]} 26... Kxe7 {[%clk 0:01:07.7]} 27. Kd3 {[%clk 0:00:33.9]} 27... Nd6
{[%clk 0:00:57.8]} 28. Kd4 {[%clk 0:00:34.3]} 28... Kd7 {[%clk 0:00:49]} 29. Kd5
{[%clk 0:00:30.4]} 29... Kc7 {[%clk 0:00:35]} 30. Rc1+ {[%clk 0:00:29.7]} 30...
Nc4 {[%clk 0:00:24.8]} 31. a4 {[%clk 0:00:19.4]} 31... Kb6 {[%clk 0:00:24.2]}
32. axb5 {[%clk 0:00:18.5]} 32... Na3 {[%clk 0:00:24.9]} 33. Rc8 {[%clk
0:00:11]} 33... Nxb5 {[%clk 0:00:24.2]} 34. Rf8 {[%clk 0:00:10.3]} 34... a4
{[%clk 0:00:20.6]} 35. Kc4 {[%clk 0:00:10.6]} 35... Kc6 {[%clk 0:00:19.1]} 36.
Kb4 {[%clk 0:00:10.3]} 36... Nd6 {[%clk 0:00:18.7]} 37. Rh8 {[%clk 0:00:07.2]}
37... h6 {[%clk 0:00:18.5]} 38. Rh7 {[%clk 0:00:07.5]} 38... Ne8 {[%clk
0:00:17.5]} 39. Rh8 {[%clk 0:00:07.1]} 39... Kd7 {[%clk 0:00:17.5]} 40. Kxa4
{[%clk 0:00:05.1]} 40... Nd6 {[%clk 0:00:17.6]} 41. Kb4 {[%clk 0:00:05.3]} 41...
Ne4 {[%clk 0:00:17.7]} 42. f3 {[%clk 0:00:05.1]} 42... Nd2 {[%clk 0:00:13.6]}
43. Rb8 {[%clk 0:00:05]} 43... Nf1 {[%clk 0:00:12]} 44. Rxb7+ {[%clk 0:00:05.2]}
44... Ke6 {[%clk 0:00:12.4]} 45. e4 {[%clk 0:00:05]} 45... Ne3 {[%clk
0:00:12.7]} 46. g3 {[%clk 0:00:05.3]} 46... Nf1 {[%clk 0:00:11.7]} 47. g4 {[%clk
0:00:03.7]} 47... g5 {[%clk 0:00:12.2]} 48. Kc4 {[%clk 0:00:03.3]} 48... Nd2+
{[%clk 0:00:11.7]} 49. Kd3 {[%clk 0:00:03.2]} 49... Nxf3 {[%clk 0:00:12.6]} 50.
Ke3 {[%clk 0:00:03.2]} 50... Ng1 {[%clk 0:00:11.8]} 51. Rb6+ {[%clk 0:00:03.1]}
51... Ke5 {[%clk 0:00:11.7]} 52. Rxh6 {[%clk 0:00:03.5]} 52... f6 {[%clk
0:00:12.3]} 53. Rh7 {[%clk 0:00:03.5]} 53... Ke6 {[%clk 0:00:11.7]} 54. Kf2
{[%clk 0:00:03.2]} 1-0